bitfinex-derivatives/quotes_ETHF0:USTF0_20250919
["timestamp","ask_amount","ask_price","bid_price","bid_amount"]
[1758253364678,0.3136,4554.5,4553.9,4.70606]
[1758253364877,0.3136,4554.5,4554.2,3.0533855]
[1758253365169,0.3136,4554.5,4553.6,35.562]
[1758253365362,0.3136,4553.5,4553.4,3.0533855]
[1758253365673,0.3136,4553.5,4553.4,38.9273855]
[1758253365873,1.16,4553.5,4553.4,38.9273855]
[1758253366369,0.4874,4551.4,4550.5,3.2078]
[1758253366569,9.314571,4550.6,4549.0,0.5]
[1758253366767,3.2078,4550.1,4550.0,1.185]
[1758253366964,3.2078,4550.1,4550.0,1.536]
[1758253367164,3.2078,4550.6,4550.5,1.175]
[1758253367366,6.2611855,4550.6,4550.4,0.352]
[1758253367570,3.0533855,4550.5,4550.0,0.01]
[1758253367771,3.2078,4550.1,4550.0,0.01]
[1758253367974,3.2078,4550.1,4548.5,0.3394]
[1758253367975,3.45979216,4550.1,4549.0,0.5]
[1758253368273,3.45979216,4550.1,4548.0,0.3394]
[1758253368274,3.2078,4549.1,4548.0,0.3394]
[1758253368471,6.2611855,4548.1,4547.4,0.8356]
[1758253368770,3.2078,4548.2,4548.1,0.8356]
[1758253368971,6.2611855,4548.2,4548.0,0.352]
[1758253369173,4.21987,4548.1,4546.5,1.175]
[1758253369373,3.2078,4546.6,4545.0,3.5472]
[1758253369566,3.2078,4545.5,4545.4,0.352]
[1758253369767,0.21994,4548.0,4545.4,0.352]
[1758253369768,3.2078,4546.2,4545.4,0.352]
[1758253369972,3.2078,4545.7,4545.5,0.8356]
[1758253370179,3.2078,4545.7,4545.6,0.352]
[1758253370379,3.2078,4545.7,4545.3,0.44001012]
[1758253370576,3.2078,4545.7,4545.4,0.351]
[1758253370774,3.2078,4546.2,4545.6,0.8356]
[1758253370980,3.2078,4545.7,4545.6,36.755]
[1758253371171,3.2078,4545.7,4545.3,0.44001012]
[1758253371172,3.2078,4546.2,4545.3,0.44001012]
[1758253371372,3.2078,4545.6,4545.3,0.44001012]
[1758253371574,3.2078,4545.6,4545.4,1.1876]
[1758253371876,3.2078,4545.6,4545.4,0.8356]
[1758253372069,3.2078,4545.6,4545.3,0.44001012]
[1758253372070,3.2078,4546.5,4546.3,0.8356]
[1758253372274,3.2078,4546.5,4546.4,0.8356]
[1758253372471,3.2078,4547.0,4546.8,0.39568]
[1758253372674,3.2078,4547.5,4547.4,1.175]
[1758253372882,3.2078,4548.3,4548.0,0.3394]
[1758253373077,3.2078,4548.8,4548.7,0.8356]
[1758253373378,3.2078,4549.1,4548.7,0.353]
[1758253373573,3.2078,4549.1,4548.8,0.8356]
[1758253373771,3.2078,4549.6,4549.0,0.8356]
[1758253374076,3.2078,4549.6,4549.3,0.3394]
[1758253374278,3.2078,4549.6,4549.5,0.8356]
[1758253374780,3.2078,4549.6,4549.5,1.1876]
[1758253374978,6.2611855,4549.6,4548.8,0.8356]
[1758253375174,3.2078,4548.9,4548.1,0.8454]
[1758253375375,3.2078,4548.2,4548.1,0.8454]
[1758253375678,3.2078,4548.2,4548.1,1.1974]
[1758253375881,3.2078,4548.7,4548.1,1.1974]
[1758253376176,5.0477138,4551.8,4549.2,1.1995]
[1758253376177,3.2078,4549.3,4549.2,1.1995]
[1758253376483,3.2078,4549.3,4549.2,1.5505]
[1758253376870,7.42762,4549.3,4546.2,0.3541]
[1758253377077,3.2078,4547.8,4547.4,0.3541]
[1758253377378,3.2078,4548.3,4548.0,0.3541]
[1758253377577,3.2078,4548.8,4548.1,1.2004]
[1758253378075,3.2078,4548.8,4548.7,0.8454]
[1758253378378,3.2078,4548.8,4548.7,1.1994]
[1758253378675,3.89542761,4552.7,4549.2,1.2015]
[1758253378676,3.2078,4549.3,4549.2,1.2015]
[1758253378878,3.2078,4549.8,4549.2,35.9601]
[1758253379084,3.2078,4549.8,4549.4,0.8454]
[1758253379274,3.2078,4549.8,4549.3,0.353]
[1758253380176,3.2078,4549.8,4549.4,0.8454]
[1758253380383,3.2078,4550.6,4549.6,4.0532]
[1758253380684,3.2078,4550.6,4550.5,0.8454]
[1758253380875,3.2078,4550.6,4550.5,1.1974]
[1758253381173,7.1225412,4550.6,4550.4,0.3561]
[1758253381475,4.0,4550.5,4548.0,0.3561]
[1758253381676,3.2078,4549.0,4548.0,35.9611]
[1758253381878,3.2078,4549.0,4548.9,1.213]
[1758253382371,3.2078,4549.5,4548.9,4.3676]
[1758253382572,3.2078,4549.5,4549.3,0.8454]
[1758253383074,3.2078,4549.5,4549.4,0.35]
[1758253383383,3.2078,4549.5,4549.4,1.1954]
[1758253383775,3.2078,4549.5,4549.4,5.1954]
[1758253384669,3.2078,4550.3,4549.4,5.1954]
[1758253384882,3.2078,4550.3,4549.9,0.8454]
[1758253385177,3.2078,4550.3,4550.1,0.8454]
[1758253385678,3.2078,4550.3,4550.1,4.8454]
[1758253385877,3.2078,4550.3,4550.2,0.8454]
[1758253386374,1.53692954,4552.6,4550.2,4.0]
[1758253386375,3.2078,4550.8,4550.2,4.0]
[1758253386581,3.2078,4550.8,4550.5,0.8454]
[1758253386784,3.2078,4550.8,4550.7,0.8454]
[1758253387580,3.2078,4551.6,4551.0,0.3561]
[1758253387780,3.2078,4551.6,4551.2,0.8454]
[1758253387975,3.2078,4551.6,4551.1,0.346]
[1758253388377,3.2078,4551.6,4551.2,0.8454]
[1758253388578,3.2078,4551.6,4551.1,0.346]
[1758253388782,3.2078,4551.6,4551.2,0.8454]
[1758253389177,3.2078,4551.6,4551.1,0.346]
[1758253389376,3.2078,4551.6,4550.5,0.8454]
[1758253389377,0.59230959,4551.5,4550.5,0.8454]
[1758253389583,3.2078,4550.7,4550.6,0.8454]
[1758253389783,3.80000443,4550.7,4550.6,1.1904]
[1758253391182,3.80000443,4550.7,4550.6,1.1894]
[1758253392280,3.2078,4550.7,4550.6,1.1894]
[1758253392482,3.80186373,4550.7,4550.6,0.8454]
[1758253392784,3.80186373,4550.7,4550.6,1.1874]
[1758253394375,3.2078,4550.7,4550.6,1.1874]
[1758253394574,3.80330336,4550.7,4550.6,1.1874]
[1758253394982,3.2078,4551.3,4550.6,5.1874]
[1758253395182,0.59556438,4551.2,4551.1,0.8454]
[1758253395386,0.59556438,4551.2,4551.1,1.1854]
[1758253396275,0.39531,4551.1,4551.0,0.3561]
[1758253396470,0.39531,4551.1,4550.4,0.3561]
[1758253396471,0.39535,4550.6,4550.5,0.8454]
[1758253396672,3.80336438,4550.6,4550.5,1.1844]
[1758253398678,3.80336438,4550.6,4550.5,1.1824]
[1758253399688,3.80336438,4550.6,4550.5,0.8454]
[1758253399885,0.39537,4550.5,4550.4,0.3561]
[1758253400087,0.99093438,4550.5,4550.4,0.6921]
[1758253400288,4.0497148,4550.5,4550.4,0.6921]
[1758253400581,0.99093438,4550.5,4550.4,1.5375]
[1758253401182,1.23668031,4550.5,4550.4,1.5375]
[1758253402183,0.39541,4550.0,4549.8,0.3561]
[1758253402486,7.49722102,4550.0,4549.8,0.6901]
[1758253402690,0.8352306,4549.9,4549.8,0.6901]
[1758253403280,0.8352306,4549.9,4549.8,1.5355]
[1758253404679,0.59556438,4549.9,4549.8,1.5355]
[1758253404880,0.59556438,4549.9,4549.8,5.5355]
[1758253405090,3.2078,4550.0,4549.9,0.8454]
[1758253405282,3.2078,4550.0,4549.9,3.90418042]
[1758253405483,3.2078,4551.2,4550.0,0.8454]
[1758253405775,1.19490906,4551.1,4550.5,0.3561]
[1758253405982,0.79958906,4551.0,4550.6,0.331]
[1758253406179,0.56236963,4550.9,4550.7,0.8454]
[1758253406387,0.39527,4551.6,4551.0,0.3561]
[1758253406590,0.55442552,4551.5,4551.2,0.8454]
[1758253406784,0.55442552,4551.4,4551.2,0.8454]
[1758253406990,3.2078,4551.7,4551.5,0.3561]
[1758253407184,3.2078,4551.7,4551.6,1.1764]
[1758253407784,3.2078,4552.2,4552.0,0.3561]
[1758253407980,3.2078,4552.2,4552.1,1.1754]
[1758253408686,0.00977,4552.6,4552.5,1.1822]
[1758253408882,0.00977,4552.6,4552.5,1.5112]
[1758253409583,0.00977,4552.6,4552.5,5.5112]
[1758253415288,3.2078,4553.2,4553.1,0.8448]
[1758253415486,3.2078,4553.2,4553.1,36.7598]
[1758253417693,3.2078,4553.8,4553.6,0.8448]
[1758253417894,3.2078,4553.8,4553.7,1.1678]
[1758253419188,0.4978,4554.5,4553.7,1.1678]
[1758253419392,3.2078,4554.3,4553.7,1.1678]
[1758253420090,3.2078,4554.3,4553.7,0.323]
[1758253420891,3.2078,4554.3,4553.8,0.8448]
[1758253421197,3.2078,4554.8,4554.1,0.8448]
[1758253421498,3.7154,4554.3,4554.2,0.32]
[1758253422393,3.2078,4554.3,4554.2,1.1648]
[1758253423390,3.2078,4554.9,4554.2,8.99173228]
[1758253423597,0.5076,4554.8,4554.0,0.3374]
[1758253423790,0.5076,4554.8,4554.1,0.319]
[1758253423993,3.2078,4554.9,4554.3,0.8448]
[1758253424195,3.2078,4554.9,4554.5,0.3374]
[1758253424592,3.2078,4554.9,4554.6,3.43189228]
[1758253424793,3.2078,4554.9,4554.8,0.8448]
[1758253424999,3.2078,4555.4,4555.0,0.3374]
[1758253425296,3.2078,4555.4,4555.2,0.8448]
[1758253425497,3.2078,4555.9,4555.2,0.8448]
[1758253429399,3.2078,4555.4,4555.3,0.315]
[1758253429593,3.7154,4555.4,4555.3,0.315]
[1758253430594,3.7154,4555.4,4555.3,0.314]
[1758253430802,3.2078,4555.4,4555.3,1.1588]
[1758253431301,3.2078,4555.4,4554.8,35.581]
[1758253431502,3.7154,4555.4,4554.9,0.313]
[1758253431703,3.7154,4555.4,4555.0,0.3374]
[1758253432207,3.7154,4555.4,4555.2,0.8448]
[1758253433002,3.2078,4555.4,4555.2,0.8448]
[1758253433402,0.5076,4555.3,4554.7,0.8448]
[1758253433607,0.5076,4555.3,4553.5,0.3374]
[1758253433608,0.5076,4554.5,4554.4,35.57]
[1758253433811,0.5076,4554.5,4554.4,35.882]
[1758253435606,0.5076,4554.5,4554.4,36.7468]
[1758253435806,0.4801,4554.7,4554.4,36.7468]
[1758253436012,0.4801,4554.7,4554.5,0.8648]
[1758253436509,3.2078,4554.8,4554.5,0.3634]
[1758253436706,3.2078,4554.8,4554.6,0.8648]
[1758253436906,3.2078,4554.8,4554.7,1.1748]
[1758253437810,3.2078,4554.8,4554.7,4.60669228]
[1758253438011,3.2078,4555.5,4555.0,0.3563]
[1758253438206,3.2078,4555.5,4555.4,4.29889228]
[1758253438404,3.2078,4556.2,4556.1,0.867]
[1758253438610,3.2078,4556.2,4556.1,4.60789228]
[1758253438810,0.4771,4557.1,4556.2,0.867]
[1758253438811,3.2078,4556.7,4556.2,0.867]
[1758253439006,3.2078,4556.7,4556.1,3.74089228]
[1758253439007,3.2078,4556.7,4556.5,0.3563]
[1758253439214,3.2078,4556.7,4556.6,1.176]
[1758253439517,3.6849,4556.7,4556.6,0.309]
[1758253441114,3.6849,4556.7,4556.3,35.57]
[1758253441319,0.4771,4556.6,4556.4,0.308]
[1758253441519,3.2078,4556.7,4556.4,0.308]
[1758253441815,0.4771,4556.4,4556.3,35.57]
[1758253442013,0.4771,4556.4,4556.3,34.0052]
[1758253442014,3.90899228,4556.4,4556.3,34.0052]
[1758253442518,4.44096558,4556.4,4556.3,0.307]
[1758253442718,3.90899228,4556.4,4556.3,0.307]
[1758253443018,4.44096763,4556.4,4556.3,0.307]
[1758253443217,3.90899228,4556.4,4556.3,0.307]
[1758253443518,4.44108947,4556.4,4556.3,0.307]
[1758253443721,3.43189228,4556.4,4556.3,0.307]
[1758253444419,3.96412168,4556.4,4556.3,0.307]
[1758253445513,3.96412168,4556.4,4556.3,0.305]
[1758253446016,3.96412168,4556.4,4556.0,1.2233]
[1758253446224,3.2078,4556.1,4556.0,1.2233]
[1758253446421,3.2078,4556.1,4556.0,1.5273]
[1758253446620,3.2078,4556.1,4556.0,1.2233]
[1758253446820,3.2078,4556.1,4556.0,1.5273]
[1758253450228,3.2078,4556.1,4556.0,5.5273]
[1758253450624,0.00882,4556.8,4556.0,5.5273]
[1758253450625,3.2078,4556.7,4556.5,0.3563]
[1758253450834,3.2078,4556.7,4556.6,1.169]
[1758253451226,3.2078,4556.7,4556.6,0.867]
[1758253451431,3.74087518,4556.7,4556.6,0.301]
[1758253451722,7.74087518,4556.7,4555.7,0.867]
[1758253451930,3.2078,4555.8,4555.7,0.867]
[1758253452117,3.2078,4555.8,4555.7,1.168]
[1758253454829,3.2078,4555.8,4555.7,1.167]
[1758253462939,3.2078,4555.8,4555.7,2.3042]
[1758253463536,3.2078,4555.8,4555.7,0.867]
[1758253463738,7.2078,4555.8,4555.6,0.0219]
[1758253463938,4.0,4555.7,4555.6,0.0219]
[1758253464340,4.51351,4555.7,4555.0,0.3563]
[1758253464547,3.2078,4555.1,4555.0,0.6503]
[1758253464743,3.2078,4555.1,4555.0,1.5173]
[1758253465846,3.2078,4555.1,4555.0,1.2233]
[1758253468848,3.2078,4555.1,4555.0,2.3875]
[1758253469244,3.2078,4555.1,4555.0,2.6795]
[1758253471346,3.2078,4555.1,4555.0,2.3875]
[1758253471549,3.2078,4555.1,4555.0,2.6775]
[1758253472442,3.2078,4555.1,4555.0,2.3875]
[1758253472644,3.2078,4555.1,4555.0,2.6775]
[1758253472847,6.26133378,4555.1,4555.0,1.2233]
[1758253473148,3.2078,4555.1,4555.0,1.5133]
[1758253475051,8.4488,4555.1,4555.0,1.5133]
[1758253475241,8.4488,4555.1,4555.0,1.2233]
[1758253475446,8.4488,4555.1,4555.0,1.5113]
[1758253476051,8.4488,4555.1,4555.0,1.2233]
[1758253476350,8.4488,4555.1,4555.0,1.5113]
[1758253476550,8.4488,4555.1,4554.8,0.0219]
[1758253476551,12.95634,4555.1,4554.8,0.0219]
[1758253476745,12.7368,4555.1,4554.1,0.8507]
[1758253476940,6.26133378,4554.2,4554.1,0.8507]
[1758253479750,6.26133378,4554.2,4554.1,1.1367]
[1758253480453,3.2078,4554.2,4554.1,1.1367]
[1758253480656,3.2078,4554.2,4554.1,1.7222]
[1758253480854,3.2078,4554.2,4554.1,2.3046]
[1758253482052,3.2078,4554.2,4554.1,6.3046]
[1758253487064,3.2078,4554.2,4554.1,2.3016]
[1758253487661,3.2078,4554.2,4554.1,1.4362]
[1758253487861,3.2078,4554.2,4554.1,2.3016]
[1758253488362,3.2078,4554.2,4554.1,6.3016]
[1758253488561,3.2078,4554.2,4554.1,2.3016]
[1758253489965,3.2078,4554.2,4554.1,6.3016]
[1758253492264,3.1859,4554.2,4554.1,6.3016]
[1758253492667,3.2078,4554.8,4554.5,0.3338]
[1758253492868,3.2078,4554.8,4554.7,5.07213378]
[1758253496182,3.2078,4554.8,4554.7,2.0186]
[1758253500276,3.2078,4555.3,4555.2,1.1675]
[1758253500476,3.2078,4555.3,4555.2,1.1483]
[1758253501075,3.2078,4555.3,4555.2,0.8693]
[1758253501380,3.2078,4555.3,4555.2,1.1483]
[1758253501580,7.2078,4555.3,4555.2,0.8693]
[1758253501769,7.2078,4555.3,4555.0,0.3284]
[1758253501770,9.02596642,4555.3,4555.0,0.3284]
[1758253501971,1.81816642,4555.1,4554.5,0.3338]
[1758253502171,4.11688321,4554.6,4554.5,0.0219]
[1758253502582,9.24552643,4554.6,4553.6,35.561]
[1758253502783,4.11688321,4553.7,4553.6,0.8693]
[1758253502976,3.2078,4553.7,4553.6,1.1483]
[1758253503176,4.11688321,4553.7,4553.6,1.1483]
[1758253503776,4.11688321,4553.7,4553.1,0.8693]
[1758253503777,7.2078,4553.7,4553.1,0.8693]
[1758253504076,7.33416784,4553.6,4553.0,0.3284]
[1758253504282,3.2078,4553.1,4552.9,0.278]
[1758253504475,3.2078,4553.1,4552.7,0.8693]
[1758253504780,3.2078,4553.1,4552.8,0.278]
[1758253504979,3.2078,4553.1,4552.0,0.3284]
[1758253505184,3.05616784,4553.2,4552.6,1.1473]
[1758253505380,3.2078,4552.7,4552.6,0.8693]
[1758253505681,3.2078,4552.7,4552.6,1.1473]
[1758253508382,3.2078,4552.7,4552.6,0.8693]
[1758253508581,3.2078,4552.7,4552.6,1.1473]
[1758253508780,3.2078,4552.7,4552.6,2.3148]
[1758253508979,3.2078,4552.7,4552.6,5.37096784]
[1758253511484,3.2078,4552.7,4552.6,2.3148]
[1758253513090,3.2078,4552.7,4552.6,0.8693]
[1758253513481,3.2078,4552.7,4552.6,1.1473]
[1758253516386,3.2078,4552.7,4552.6,1.7315]
[1758253516779,3.2078,4552.7,4552.6,0.8693]
[1758253517483,3.2078,4552.7,4552.6,1.4535]
[1758253518984,3.2078,4552.7,4552.6,0.8693]
[1758253521690,3.2078,4552.7,4552.6,2.0368]
[1758253525894,3.2078,4552.7,4552.6,2.3148]
[1758253527794,3.2078,4552.7,4552.6,3.22447086]
[1758253528192,3.2078,4552.7,4552.6,2.94647086]
[1758253528393,3.2078,4552.7,4552.6,3.22447086]
[1758253528988,3.2078,4552.7,4552.6,2.0368]
[1758253529197,3.2078,4552.7,4552.6,1.4535]
[1758253529499,3.2078,4552.7,4552.6,1.1473]
[1758253529691,3.2078,4552.7,4552.6,1.7128]
[1758253529891,3.2078,4552.7,4552.6,3.20147086]
[1758253530603,3.2078,4552.7,4552.6,2.2918]
[1758253530796,3.2078,4552.7,4552.6,2.0138]
[1758253530998,3.2078,4552.7,4552.6,2.2918]
[1758253532002,3.2078,4552.7,4552.6,2.0138]
[1758253532502,3.2078,4552.7,4552.6,2.2918]
[1758253533096,3.2078,4552.7,4552.6,2.0138]
[1758253533296,3.2078,4552.7,4552.6,2.2918]
[1758253540303,3.2078,4552.7,4552.6,37.8748]
[1758253541808,3.1859,4552.7,4552.6,38.93925622]
[1758253542010,3.1859,4552.7,4552.6,37.8748]
[1758253543209,3.1859,4552.7,4552.6,38.93925622]
[1758253543410,3.1859,4552.7,4552.6,41.8748]
[1758253547416,3.1859,4552.7,4552.6,42.93925622]
[1758253548822,3.2078,4553.3,4553.2,1.9444]
[1758253549010,3.2078,4553.3,4553.2,3.28585622]
[1758253549313,3.2078,4553.8,4553.2,2.48595622]
[1758253549510,3.2078,4553.8,4553.7,1.9444]
[1758253549713,3.2078,4553.8,4553.7,2.2214]
[1758253550419,3.2078,4553.8,4553.7,3.28585622]
[1758253551919,3.2078,4554.5,4554.4,1.9444]
[1758253552118,3.6507,4554.5,4554.4,3.28585622]
[1758253555017,4.0936,4554.5,4554.4,3.28585622]
[1758253555413,4.3591,4554.5,4554.4,1.0769]
[1758253555614,4.0936,4554.5,4554.4,1.6517]
[1758253555915,4.0936,4554.5,4554.4,2.2278]
[1758253558123,3.2078,4554.5,4554.4,2.2278]
[1758253559324,3.2078,4554.5,4554.4,37.8028]
[1758253560324,3.2078,4554.5,4554.4,42.86725622]
[1758253560621,0.4202,4554.5,4554.4,1.798]
[1758253560820,1.103,4554.5,4554.4,2.074]
[1758253561330,0.8404,4554.5,4554.4,2.8937]
[1758253561725,0.8404,4554.5,4554.4,3.4237]
[1758253562619,0.8404,4554.5,4554.4,2.074]
[1758253562620,2.16745622,4554.5,4554.4,2.074]
[1758253563330,6.64962622,4554.5,4554.4,1.798]
[1758253563624,6.64962622,4554.5,4554.4,2.074]
[1758253564428,6.38702622,4554.5,4554.4,0.276]
[1758253564726,6.16745622,4554.5,4554.4,0.276]
[1758253565920,6.16745622,4554.5,4554.2,0.276]
[1758253566130,4.27225622,4554.3,4554.2,1.0957]
[1758253566830,3.2078,4554.3,4554.2,1.6257]
[1758253567526,7.2078,4554.3,4554.2,1.0957]
[1758253574725,8.27225622,4554.3,4554.2,1.6257]
[1758253577332,7.2078,4554.3,4554.2,1.6257]
[1758253577536,8.27225622,4554.3,4554.2,1.6257]
[1758253579131,8.27225622,4554.3,4554.2,1.0947]
[1758253579936,7.2078,4554.3,4554.2,1.0947]
[1758253580238,8.27225622,4554.3,4554.2,1.0947]
[1758253581026,8.27225622,4554.3,4554.2,1.6247]
[1758253581234,13.51325622,4554.3,4554.2,1.6247]
[1758253582132,12.4488,4554.3,4554.2,2.1502]
[1758253582338,8.4488,4554.3,4554.2,2.1502]
[1758253588337,10.57771244,4554.3,4554.2,0.8197]
[1758253588535,9.33671244,4554.3,4554.0,1.24]
[1758253588742,8.27225622,4554.3,4554.0,0.3677]
[1758253589242,8.27225622,4554.3,4554.1,0.8723]
[1758253589949,8.27225622,4554.3,4554.0,0.3677]
[1758253590548,8.27225622,4554.3,4554.1,0.8723]
[1758253590851,8.27225622,4554.3,4554.0,0.3677]
[1758253591052,8.27225622,4554.3,4554.1,0.8723]
[1758253591442,8.27225622,4554.3,4554.0,0.3677]
[1758253591845,1.8192428,4554.1,4554.0,0.3677]
[1758253592149,1.8192428,4554.1,4554.0,1.2181]
[1758253595145,6.35533585,4554.1,4553.7,0.274]
[1758253595351,4.1174214,4553.8,4553.7,0.274]
[1758253596750,4.1174214,4553.8,4553.5,0.3677]
[1758253597053,4.1174214,4553.8,4553.6,0.8723]
[1758253597253,0.9096214,4553.7,4553.6,0.8723]
[1758253600955,0.9096214,4553.7,4553.6,1.4231]
[1758253601354,0.9096214,4553.7,4553.5,0.0219]
[1758253601555,7.3332428,4553.7,4553.1,0.8723]
[1758253601756,5.0270428,4553.2,4553.1,1.4231]
[1758253603353,4.1174214,4553.2,4553.1,1.4231]
[1758253605654,5.0270428,4553.2,4553.1,1.4231]
[1758253605954,4.1174214,4553.2,4553.1,1.4231]
[1758253606552,0.157,4552.7,4552.3,0.0216]
[1758253606859,5.241,4553.7,4552.1,0.8723]
[1758253606860,0.4121,4552.2,4552.1,0.8723]
[1758253607056,2.2313428,4552.2,4552.1,0.8723]
[1758253607255,0.4121,4551.9,4551.8,0.8723]
[1758253607457,4.5295214,4551.9,4551.8,0.8723]
[1758253610465,4.4314214,4551.9,4551.8,0.8723]
[1758253610649,4.4314214,4551.9,4551.8,1.4231]
[1758253610853,4.4314214,4551.9,4551.8,0.8723]
[1758253610854,4.5295214,4551.9,4551.8,0.8723]
[1758253611057,3.3648,4551.9,4551.8,1.9626]
[1758253611253,3.2078,4551.9,4551.8,2.8722214]
[1758253611453,3.2078,4552.4,4551.8,6.8722214]
[1758253611650,4.1174214,4552.4,4552.3,1.9626]
[1758253612254,3.2078,4552.4,4552.3,5.9626]
[1758253612455,3.2078,4552.4,4552.3,6.8722214]
[1758253612762,3.2078,4553.1,4553.0,2.2875]
[1758253612955,3.2078,4553.1,4553.0,2.5595]
[1758253613460,4.1174214,4553.1,4553.0,2.5595]
[1758253613964,3.7651,4553.1,4553.0,2.5595]
[1758253614162,4.6747214,4553.1,4553.0,2.5595]
[1758253614563,5.5303214,4553.1,4553.0,2.5595]
[1758253615360,6.9971428,4553.1,4553.0,2.2346]
[1758253615858,6.9971428,4553.1,4553.0,0.5508]
[1758253616162,1.3948,4552.2,4552.1,4.3525]
[1758253616463,2.3044214,4552.2,4552.1,4.6245]
[1758253616663,1.4643214,4552.2,4552.1,4.6245]
[1758253616864,0.9096214,4552.4,4552.3,1.1447]
[1758253617158,0.9096214,4552.4,4552.3,1.9761]
[1758253617559,6.7053214,4552.4,4552.3,1.9761]
[1758253619458,5.241,4552.4,4552.3,6.8857214]
[1758253620569,0.9096214,4552.7,4552.3,6.8857214]
[1758253620864,0.9096214,4552.7,4552.6,1.9476]
[1758253621059,14.196,4552.9,4552.6,1.3868]
[1758253621264,0.9096214,4552.8,4552.7,1.9476]
[1758253621858,14.196,4552.9,4552.8,0.8318]
[1758253622061,14.196,4552.9,4552.8,1.9476]
[1758253622661,3.2078,4553.1,4553.0,2.2799]
[1758253622858,3.2078,4553.1,4553.0,2.5509]
[1758253623059,3.2078,4553.8,4553.7,0.8318]
[1758253623364,5.1407,4553.8,4553.7,1.3868]
[1758253624258,5.1407,4553.8,4553.0,0.3323]
[1758253624464,0.5744,4553.2,4553.1,2.2186]
[1758253624659,3.2078,4553.8,4553.1,2.2186]
[1758253624963,4.038,4554.3,4554.1,0.8318]
[1758253625164,4.6124,4554.3,4554.2,2.2186]
[1758253625370,0.5744,4554.3,4554.2,2.2186]
[1758253625861,1.4046,4554.3,4554.2,2.2186]
[1758253626261,1.4046,4554.7,4554.6,1.9476]
[1758253626457,1.4046,4554.7,4554.6,2.2186]
[1758253626662,1.9329,4554.7,4554.6,2.2186]
[1758253626871,1.9329,4554.7,4554.6,1.3868]
[1758253627070,1.9329,4554.7,4554.6,0.8457]
[1758253627669,0.5283,4553.1,4553.0,1.96686002]
[1758253627874,4.98991084,4553.1,4553.0,0.271]
[1758253628173,4.98991084,4553.1,4553.0,0.8457]
[1758253629067,1.9329,4553.1,4553.0,0.8457]
[1758253629270,4.98991084,4553.1,4553.0,0.8457]
[1758253629465,0.348,4553.0,4552.4,3.2078]
[1758253629672,1.9329,4552.5,4552.4,5.1554]
[1758253629972,1.9329,4552.5,4552.4,5.4254]
[1758253630169,0.5744,4553.2,4553.1,0.5747]
[1758253630374,0.5744,4553.2,4553.1,1.3858]
[1758253630872,1.9329,4553.2,4553.1,1.9476]
[1758253631070,1.9329,4553.2,4553.1,2.2176]
[1758253632569,1.1027,4553.2,4553.1,2.2176]
[1758253632775,1.9329,4553.2,4553.1,2.2176]
[1758253635269,0.5744,4553.2,4553.1,2.2176]
[1758253635778,1.4046,4553.5,4553.4,1.9476]
[1758253635977,1.4046,4553.5,4553.4,2.2176]
[1758253636470,3.7822,4553.9,4553.8,1.9476]
[1758253636671,0.5744,4553.9,4553.8,2.2176]
[1758253636870,1.9329,4553.9,4553.8,2.2176]
[1758253637374,1.4046,4554.2,4554.1,1.1158]
[1758253637576,1.4046,4554.2,4554.1,2.2176]
[1758253637779,1.9329,4554.2,4554.1,0.8447]
[1758253638181,1.9329,4554.2,4554.1,0.27]
[1758253638384,1.9329,4554.2,4553.5,0.3323]
[1758253638385,2.2809,4553.5,4553.1,0.8318]
[1758253638578,2.2809,4553.5,4553.4,1.9476]
[1758253638579,1.9329,4553.5,4553.4,1.9476]
[1758253638883,2.2809,4553.5,4553.4,0.27]
[1758253639381,2.2809,4553.5,4553.4,0.269]
[1758253639587,5.33791084,4553.5,4553.4,0.269]
[1758253639977,5.33791084,4553.5,4552.7,4.6143]
[1758253639978,1.9329,4552.8,4552.7,4.6143]
[1758253640186,1.9329,4552.8,4552.7,4.0515]
[1758253640384,1.9329,4552.8,4552.4,35.581]
[1758253640578,1.9329,4552.7,4552.6,0.5747]
[1758253641084,1.9329,4552.7,4552.6,1.9476]
[1758253643876,0.348,4552.5,4552.4,35.581]
[1758253644076,1.9329,4552.1,4552.0,0.0219]
[1758253644283,4.98991084,4552.1,4552.0,0.2909]
[1758253644484,1.9329,4552.1,4552.0,2.2385]
[1758253644988,1.9329,4552.1,4552.0,0.8656]
[1758253645284,1.9329,4552.1,4552.0,0.2909]
[1758253645484,1.9329,4552.1,4552.0,0.269]
[1758253646890,1.9329,4552.1,4552.0,0.8437]
[1758253647780,1.9329,4552.1,4552.0,2.2166]
[1758253647987,1.9643,4552.4,4552.3,1.9133]
[1758253648186,1.9643,4552.4,4552.3,2.1823]
[1758253648984,1.9643,4552.4,4552.3,5.3901]
[1758253649386,3.2078,4553.4,4552.7,1.0988]
[1758253649690,3.2078,4553.4,4552.5,0.3125]
[1758253649691,1.893,4553.3,4553.2,1.8963]
[1758253649889,1.893,4553.3,4553.2,0.269]
[1758253650384,1.893,4552.2,4552.1,0.7975]
[1758253650586,1.893,4552.2,4552.1,1.6095]
[1758253650790,1.893,4552.2,4552.1,2.1643]
[1758253653489,0.318,4552.0,4551.5,0.3323]
[1758253653691,0.318,4552.0,4550.1,3.2078]
[1758253653692,0.318,4550.5,4550.1,3.2078]
[1758253653990,0.318,4549.5,4549.0,3.2078]
[1758253654190,0.318,4549.0,4547.2,1.96686002]
[1758253654489,3.2078,4548.5,4547.5,1.11]
[1758253654790,3.1,4549.9,4547.5,1.11]
[1758253654791,3.2078,4549.2,4549.1,0.7975]